[Event "Sautron op 16th"]
[Site "Sautron"]
[Date "2016.10.22"]
[Round "8.3"]
[White "Stany, George Anthony"]
[Black "Koziak, Vitali"]
[Result "1-0"]
[ECO "C65"]
[WhiteElo "2471"]
[BlackElo "2479"]
[Annotator "Stany,GA"]
[PlyCount "111"]
[EventDate "2016.10.22"]
[EventType "swiss"]
[EventRounds "9"]
[EventCountry "FRA"]
[SourceTitle "EXT 2019"]
[Source "ChessBase"]
[SourceDate "2018.10.10"]
[SourceVersion "1"]
[SourceVersionDate "2018.10.10"]
[SourceQuality "1"]
[TimeControl "40/5400+30:1800+30"]
[WhiteClock "0:13:10"]
[BlackClock "0:24:51"]

{This was my game from penaltimate round in Sautron Open.I was 5.5/7 and it
was a must win game for me to play for the title. My opponent is a solid
player who has been maintaining 2480 rating for quite sometime So I was
prepared for a long game.} 1. e4 {[%emt 0:00:00]} e5 {[%emt 0:00:00]} 2. Nf3 {
[%emt 0:00:00]} Nc6 {[%emt 0:00:00]} 3. Bb5 {[%emt 0:00:00]} Nf6 {[%emt 0:00:
00]} 4. d3 {[%emt 0:00:00]} Bc5 {[%emt 0:01:05]} 5. Bxc6 {[%emt 0:00:00] This
line is extremely popular these days.} dxc6 {[%emt 0:02:28]} 6. Nbd2 {[%emt 0:
00:00]} Nd7 {[%emt 0:05:57]} ({Pertinent:} 6... Qe7 7. h3 O-O 8. Nc4 Nd7 9. Qe2
b5 10. Ne3 Nb6 11. Nf5 Bxf5 12. exf5 Nd7 13. Nd2 Bb4 14. c3 Ba5 15. Ne4 b4 16.
O-O Rfd8 17. cxb4 Bxb4 18. Be3 f6 19. Qc2 Nb6 20. a3 Bd6 21. Qxc6 Qd7 22. Qxd7
Rxd7 23. Rfc1 Nd5 24. Bd2 Bf8 25. g3 a5 26. Kf1 a4 27. Ke2 Rb8 28. Rc2 Rb3 29.
Rac1 Rd8 30. Nc3 Nxc3+ 31. Bxc3 Rd5 32. g4 c6 33. Rg1 h6 34. h4 Be7 35. Rg3 Kf7
36. Kd2 {Caruana,F (2787)-Nakamura,H (2793) London 2015 1/2-1/2}) 7. O-O {
[%emt 0:00:51]} O-O {[%emt 0:00:31]} 8. Nc4 {[%emt 0:00:05]} Re8 {[%emt 0:01:
01]} 9. Be3 {[%emt 0:00:07]} Bd6 {[%emt 0:10:57]} 10. a4 {[%emt 0:04:43]} c5 {
[%emt 0:04:06]} 11. Nfd2 {[%emt 0:10:19]} Nb8 $146 {[%emt 0:04:04]} (11... Nf8
{was played last year in the game Lu,S (2570)-Malakhov,V (2706) China 2015})
12. f4 {[%emt 0:13:21]} (12. Qh5 g6 13. Qh6 Bf8 14. Qg5 Qxg5 15. Bxg5 Nc6 $11)
(12. Nxd6 {Stockfish preferes this} cxd6 13. f4 exf4 14. Bxf4 Be6 15. Nc4 $14)
12... exf4 {[%emt 0:00:13]} 13. Bxf4 {[%emt 0:00:06]} Bxf4 {[%emt 0:14:54]} 14.
Rxf4 {[%emt 0:00:15]} Nc6 {[%emt 0:04:35]} (14... Qg5 $1 {Was better as it
stops Qh5} 15. Qf3 Be6 16. Rf1 Nc6 $11) 15. Qh5 {[%emt 0:02:00]} g6 $6 {
[%emt 0:03:35] Creates weakness on king side} (15... Be6 16. Raf1 (16. Qxc5
Qd4+ 17. Qxd4 Nxd4 $15) 16... Qe7 17. Ne3 {With slight edge for White}) 16. Qh6
{[%emt 0:08:44]} (16. Qxc5 Qd4+ 17. Qxd4 Nxd4 18. Rff1 Nxc2 19. Rac1 Nd4 $11)
16... Qd4+ {[%emt 0:02:02]} 17. Rf2 {[%emt 0:11:56]} (17. Kh1 Qg7 18. Qg5 Nd4
$11) 17... Be6 {[%emt 0:04:46]} 18. Raf1 {[%emt 0:01:26]} Qg7 {[%emt 0:07:11]}
(18... f5 19. Ne3) 19. Qg5 {[%emt 0:01:43]} b6 {[%emt 0:01:15]} 20. Rf6 {
[%emt 0:10:16] Stopping f5 and increasing pressure} Rad8 {[%emt 0:06:20]} 21.
Ne3 {[%emt 0:07:54]} Rd7 {[%emt 0:05:04]} 22. b3 {[%emt 0:02:04] Stopping c4
counterplay forever and Black has run out of plans} h6 {[%emt 0:04:04]} (22...
Nd4 23. Ndc4 Nc6 24. Ne5 Nxe5 25. Qxe5 $16) 23. Qh4 {[%emt 0:05:49]} Kh7 {
[%emt 0:02:23]} 24. Ng4 {[%emt 0:03:21]} Bxg4 {[%emt 0:03:47]} (24... Nd4 25.
Nc4 (25. Rxg6 Qxg6 26. Nf6+ Kh8 27. Nxe8 Qg5 $1 $11) 25... Bxc4 26. bxc4 $16)
25. Qxg4 {[%emt 0:00:04]} Ne5 {[%emt 0:00:32]} 26. Qxd7 $1 {[%emt 0:00:07]
Probably my opponent missed this shot} Nxd7 {[%emt 0:00:22]} 27. Rxf7 {[%emt 0:
00:05]} Ne5 {[%emt 0:00:40]} 28. Rxg7+ {[%emt 0:00:27]} Kxg7 {[%emt 0:00:02]
First task of getting material advantge is done and now it's time to improve
my pieces again} 29. Nc4 {[%emt 0:03:57]} Nc6 {[%emt 0:00:27]} 30. Kf2 {
[%emt 0:01:40]} Nd4 {[%emt 0:02:21]} 31. Ne3 {[%emt 0:00:09] On e3 the knight
supports c2 pawn and threatens to go to d5} Rd8 {[%emt 0:05:11]} 32. Ke1 {
[%emt 0:00:28]} h5 {[%emt 0:00:52]} 33. Kd2 {[%emt 0:00:38]} Rd7 {[%emt 0:00:
38]} 34. Nc4 {[%emt 0:04:39] Vacating e3 square for the king} Re7 {[%emt 0:00:
31]} 35. Rf2 {[%emt 0:01:59]} Rd7 {[%emt 0:00:15]} 36. Ke3 {[%emt 0:01:24]} Re7
{[%emt 0:00:16]} 37. c3 $1 {[%emt 0:01:13]} Nf5+ {[%emt 0:04:20]} (37... Nxb3
38. Rb2 Na5 (38... Na1 39. Rb1 Nc2+ 40. Kd2 {knight trap}) 39. Nxa5 bxa5 40.
Rb5 $18) 38. Kd2 {[%emt 0:00:29]} Nd6 {[%emt 0:01:02]} 39. Ne3 {[%emt 0:04:09]}
(39. Nxd6 {going to rook ending should also win but I prefered to keep the
knight} cxd6 40. Ke3 Re8 41. d4 Re7 42. h4 Re8 43. dxc5 dxc5 44. Rd2 Re7 45.
Rd6 Kf7 46. Kf4) 39... Rd7 {[%emt 0:00:51]} 40. Kc2 {[%emt 0:00:00]} Nf7 {
[%emt 0:00:00]} 41. Nc4 {[%emt 0:03:52]} Re7 {[%emt 0:01:48]} 42. b4 $1 {
[%emt 0:03:51] Opening the c-file to create weakness on Black's queen side.}
cxb4 {[%emt 0:00:38]} 43. cxb4 {[%emt 0:00:04]} Ng5 {[%emt 0:00:42]} 44. Kd2 {
[%emt 0:05:50] Bringing king towards the centre} (44. Kc3 $2 Rxe4 $11) 44...
Rd7 {[%emt 0:01:34]} 45. Ke3 {[%emt 0:00:12]} Re7 {[%emt 0:01:09]} 46. Rc2 {
[%emt 0:01:39]} Re6 {[%emt 0:05:07]} 47. Nd2 {[%emt 0:00:59]} Re7 {[%emt 0:00:
30]} 48. Nf3 {[%emt 0:00:44]} Nf7 {[%emt 0:00:32]} 49. Nd4 {[%emt 0:00:54]} Ne5
{[%emt 0:00:05]} 50. h3 {[%emt 0:06:48]} (50. Rxc7 {is also winning} Rxc7 51.
Ne6+ Kf6 52. Nxc7 Ng4+ 53. Ke2 Nxh2 54. Nb5 $18) 50... Kh6 {[%emt 0:00:40]} 51.
Nc6 {[%emt 0:00:13]} Nxc6 {[%emt 0:00:06]} 52. Rxc6 {[%emt 0:00:04] And the
march of e-pawn cannot be stopped} Kg5 {[%emt 0:00:09]} 53. d4 {[%emt 0:00:08]}
Rg7 {[%emt 0:00:08]} 54. e5 {[%emt 0:01:49]} Kh4 {[%emt 0:00:24]} 55. Ke4 {
[%emt 0:01:11]} Kg3 {[%emt 0:00:29]} 56. Rc2 {[%emt 0:00:04] Black resigned.}
1-0

[Event "Khanty-Mansiysk FIDE GP"]
[Site "Khanty-Mansiysk"]
[Date "2015.05.22"]
[Round "8"]
[White "Caruana, Fabiano"]
[Black "Jakovenko, Dmitrij"]
[Result "0-1"]
[ECO "C65"]
[WhiteElo "2803"]
[BlackElo "2738"]
[Annotator "Wagner,D"]
[PlyCount "94"]
[EventDate "2015.05.14"]
[EventType "tourn"]
[EventRounds "11"]
[EventCountry "RUS"]
[EventCategory "21"]
[SourceTitle "CBM 167"]
[Source "ChessBase"]
[SourceDate "2015.07.13"]
[SourceVersion "1"]
[SourceVersionDate "2015.07.13"]
[SourceQuality "1"]
[TimeControl "40/7200:20/3600:900+30"]

1. e4 {[%emt 0:00:03]} e5 {[%emt 0:00:04]} 2. Nf3 {[%emt 0:00:05]} Nc6 {
[%emt 0:00:03]} 3. Bb5 {[%emt 0:00:05]} Nf6 {[%emt 0:00:03]} 4. d3 {[%emt 0:00:
04]} Bc5 {[%emt 0:00:06]} 5. Nbd2 $5 {[%emt 0:00:17] This specific move order
has been becoming popular recently in the Anti-Berlin with 5.d3.} (5. Bxc6 dxc6
6. Nbd2 Be6 $5 {Here Black can prevent Nc4.} (6... O-O {would transpose back
to the game.})) 5... O-O {[%emt 0:00:07]} (5... d6 {Here Black is forced to
take back on c6 with the b-pawn.} 6. O-O O-O 7. Bxc6 bxc6 8. h3 $5) (5... Nd4 {
at once is an alternative.}) 6. Bxc6 $5 {[%emt 0:00:30]} (6. O-O Nd4 {
Jakovenko likes playing lines with ...Nd4.}) 6... dxc6 {[%emt 0:00:08]} (6...
bxc6 $6 7. Nxe5 {drops a pawn now.}) 7. Nc4 {[%emt 0:00:23] compared to the
move order with 6.Bxc6 Black has already decided on castling and thereby
allowed Nc4.} Nd7 {[%emt 0:00:10]} 8. Be3 {[%emt 0:00:43]} (8. O-O Re8 9. Bd2
$5 {[%cal Gb2b4,Ga2a4] is another arrangement of the pieces, with the plan of
playing on the queenside.} (9. Be3 {gives Black the additional possibility} Bf8
$1 10. a4 c5 11. Qe1 b6 12. Kh1 Ba6 13. b3 Bd6 14. Nfd2 Nf8 15. Nxd6 cxd6 16.
c4 Ne6 $11 {1/2-1/2 (34) Adams,M (2720)-Jakovenko,D (2732) Eilat 2012}) (9. a4
Bf8 10. Kh1 f6 11. Ng1 Nc5 12. b3 Ne6 $11 {1/2-1/2 (40) Malakhov,V (2706)
-Jakovenko,D (2742) Sochi 2015}) 9... Bd6 10. b4 Nf8 11. a4 f6 {Here Black is
pretty solid, too.}) 8... Bd6 {[%emt 0:02:09]} (8... f6 {is also played:} 9.
O-O b6 10. Nh4 a5 11. Qg4 Bxe3 12. Nxe3 Nc5 13. Nef5 Bxf5 14. Nxf5 g6 15. h4
Kh8 16. Ne3 {1/2 (27) Ivanchuk,V (2753) -So,W (2731) Havana 2014, White had
slight pressure.}) 9. O-O {[%emt 0:07:51]} Re8 {[%emt 0:01:00]} 10. Nfd2 {
[%emt 0:01:35]} (10. d4 {is pretty harmless.} exd4 11. Nxd6 cxd6 12. Qxd4 Qf6
$1 (12... Ne5 13. Nxe5 dxe5 14. Qxd8 Rxd8 15. Rfd1 Re8 16. a4 $36 {1/2 (51) -1/
2 (51) Leko,P (2730) -Giri,A (2734) Beijing 2013}) 13. Nd2 Qxd4 14. Bxd4 c5 15.
Be3 b6 16. Nc4 Ba6 17. Nxd6 Bxf1 18. Nxe8 Rxe8 19. Kxf1 Rxe4 $11 {1/2 (30) -1/
2 (30) Yu,Y (2697)-So,W (2755) Las Vegas 2014}) 10... Nf8 {[%emt 0:04:48]} 11.
Qh5 $146 {[%emt 0:08:58] Since the immediate f4-break doesn't yield anything,
White activates his queen first. Anyway I don't see any problems for Black,
because he has achieved a harmonious setup.} (11. Nxd6 cxd6 12. f4 exf4 13.
Bxf4 Be6 14. b3 Ng6 15. Bg3 Qd7 16. h3 f6 $11 {1/2 (47)-1/2 (47) Popov,I (2653)
-Jumabayev,R (2564) Moscow 2014. Black easily achieved equality.}) 11... Be6 {
[%emt 0:05:30]} 12. h3 {[%emt 0:15:22] It seems like Caruana didn´t know what
to do, which is understandable, as Black is prepared well for f4, while the d2,
c4-knight construction looks rather clumsy.} (12. f4 $6 exf4 13. Bxf4 Bxf4 14.
Rxf4 b5 $1 $15 {[%cal Gd8d4]}) (12. Nxd6 cxd6 13. f4 exf4 14. Rxf4 $11) 12...
Ng6 {[%emt 0:04:42]} 13. g3 {[%emt 0:07:38] White's play is very provocative.
He wants to control the f4-square in order to prepare f2-f4 for the future.}
Qd7 {[%emt 0:05:28]} 14. Kh2 {[%emt 0:00:36]} f5 $6 {[%emt 0:15:46] It´s
always a big question in this structure, if Black should go for f5 or not.
Because White has weakened his kingside this move is rather tempting, but has
also major drawbacks. White gets full control over the e4-square and finally
finds a useful job for his d2-knight.} (14... Bf8 {I think that it's better to
keep the status quo where Black doesn´t have any weaknesses, as White is the
one having problems in finding a useful idea. I would prefer being Black here.}
15. f4 {is countered by} exf4 16. gxf4 f5 $1 $11 17. Nf3 $1 {is enough for
keeping the balance.} fxe4 18. Ng5 h6 19. Nxe4 Bxc4 20. Qxg6 Qe6 21. Qxe6+ Bxe6
$11) (14... c5 $5 15. f4 exf4 16. gxf4 f5 $1 $132) 15. exf5 {[%emt 0:02:46]}
Bxf5 {[%emt 0:00:04]} 16. Ne4 {[%emt 0:00:18] Now White is the one with
clear-cut play, while Black has to prove compensation for his bad structure.}
Rf8 {[%emt 0:08:31]} 17. Rae1 {[%emt 0:00:59]} Rae8 {[%emt 0:03:28]} (17... Ne7
{The knight has to be transferred to d5 in any case, so it makes sense to
start this manoeuvre at once.} 18. Bd2 Nd5 19. Ne3 Nxe3 20. Rxe3 b6 $11) 18.
Bd2 $1 {[%emt 0:06:28]} (18. Bxa7 {is refuted by} Bb4 $1 19. Re2 b6 {[%csl Ra7]
}) 18... Ne7 {[%emt 0:08:14]} 19. Ne3 {[%emt 0:15:52]} Bg6 {[%emt 0:01:03]} 20.
Qg4 {[%emt 0:00:05]} Qd8 {[%emt 0:00:15]} (20... Nf5 $1 {The activation of
this knight is necessary sooner or later.} 21. Bc3 Qf7 22. Nc4 Qd5 $11) 21. Ng5
{[%emt 0:05:15]} Rf6 $6 {[%emt 0:01:58]} (21... Nf5 $142 {It would have been
better to coordinate the pieces.} 22. Nxf5 (22. Qc4+ Kh8 23. Ne6 $2 Rxe6 24.
Qxe6 Nd4 $19) 22... Rxf5 23. h4 Be7 24. f3 (24. Ne4 Ref8) 24... Qd7 $14 {
Black can hope to compensate his broken structure.}) 22. h4 {[%emt 0:08:12]} (
22. Qa4 $5 {[%cal Ga4a7,Ga4b3] with a double attack is also interesting.} Qb8 {
Now it´s worth comparing the two queens.} 23. d4 $1 {exchanging one weakness
but gaining activity for the pieces.} exd4 24. Qxd4 $36 {[%cal Gd2c3,Ge3g4]})
22... Nd5 {[%emt 0:13:14]} 23. Qc4 {[%emt 0:03:34]} Kh8 $6 {[%emt 0:04:14]
Black won't have enough compensation for the pawn.} (23... Bf8 24. Ng4 Rf5 25.
f3 {Black if facing a tedious defence, but has enough resources for defending.}
Kh8 26. Qb3 $1 {provoking further weakenings.} b6 (26... b5 27. a4 $14) 27. Qa4
$14) 24. Nxd5 {[%emt 0:10:24]} cxd5 25. Qxd5 {[%emt 0:00:05]} e4 {[%emt 0:01:
24]} 26. Kg1 {[%emt 0:00:45]} exd3 {[%emt 0:13:54]} 27. cxd3 $2 {[%emt 0:00:20]
Surprisingly this natural recapture spoils a major part of the advantage.} (27.
Bc3 $1 {is a strong intermediate move, destroying Black´s coordination and
forcing him to sacrifice the exchange.} Rxe1 (27... Rf5 28. Qd4 Rg8 29. cxd3
$16 {with a much better version of the game}) 28. Rxe1 dxc2 $1 (28... c6 29.
Bxf6 Qxf6 30. Qa5 $1 h6 (30... dxc2 31. h5 $1 Bxh5 32. Ne4 $18) 31. h5 $1 Bxh5
32. Ne4 Qe5 33. Qxe5 Bxe5 34. cxd3 $18) 29. Bxf6 Qxf6 30. Qxb7 h6 31. Qc8+ Qf8
32. Qxf8+ Bxf8 33. Nf3 Be4 $1 (33... Kg8 34. Rc1 $18) 34. Nd4 c5 35. Nb3 $1 (
35. Ne2 c4 36. Rc1 Bc5 37. Kf1 g6 38. Ke1 Bf5 39. Kd2 Bxf2 40. Rf1 Bb6 $44)
35... c4 36. Na1 $1 {a very nice knight manouvre!} Bb4 (36... c3 37. bxc3 Ba3
38. Nxc2 Bxc2 39. c4 $16) 37. Rc1 Bd2 38. Rxc2 Bxc2 39. Nxc2 $16 {with winning
chances.}) 27... h6 {[%emt 0:02:42]} 28. Ne4 {[%emt 0:04:59]} (28. Rxe8+ {
I believe that it´s better to exchange one pair of rooks.} Bxe8 29. Ne4 Bc6 30.
Qh5 Re6 31. Bc3 Bf8 (31... Qe8 32. Qg4 $14) 32. Re1 $14) 28... Rfe6 {[%emt 0:
03:13] It's difficult to convert the extra pawn against Black's bishop pair,
which cannot be eliminated, since after the exchange of the knight on e4
against the d6-bishop the opposite-coloured bishops and the weakness of the
light squares give Black decent play.} 29. Bc3 {[%emt 0:02:19]} ({After} 29.
Nxd6 Qxd6 $1 30. Qxb7 Bxd3 31. Rxe6 Rxe6 32. Rc1 Be4 33. Qb4 Qd7 34. Bf4 c6 {
Black has compensation on the light squares.}) 29... Bf8 $1 {[%emt 0:01:58]}
30. Qb3 {[%emt 0:02:28]} (30. Qxd8 Rxd8 31. Re3 Kg8 $44) 30... b6 {[%emt 0:01:
37]} 31. Re3 {[%emt 0:00:00]} Bc5 $1 {[%emt 0:06:34]} 32. Rf3 {[%emt 0:00:05]}
(32. Nxc5 Rxe3 33. fxe3 Qd6 $1 34. Rf3 Qxc5 35. Kf2 Kh7 $44) 32... Bd4 {
[%emt 0:00:17]} (32... Bxe4 $5 {is possible as well} 33. dxe4 Rxe4 34. Rd1 Bd4
35. Rf7 {Black can escape the pin in style:} (35. Rfd3 c5 $11) 35... Qa8 $1 (
35... c5 $5 $11) 36. Kh2 c5 $11) 33. Re1 {[%emt 0:05:06]} c5 {[%emt 0:02:51]}
34. Rf4 {[%emt 0:00:44]} Bxc3 {[%emt 0:00:11]} 35. Qxc3 {[%emt 0:03:44]} Qd5 {
[%emt 0:00:53] Now it's already impossible to keep any edge and confronted
with this upleasant turnaround, Caruana blunders!} 36. Qb3 $4 {[%emt 0:00:37]}
(36. a3 Bxe4 37. Rf7 Qe5 38. Qxe5 Rxe5 39. dxe4 Rxe4 40. Rxe4 Rxe4 41. Rxa7
Re1+ 42. Kg2 Rb1 $11) 36... c4 $1 37. Qc3 (37. dxc4 Qa5 $1 $19 {Propably he
missed this riposte!}) 37... cxd3 {[%emt 0:00:22] White´s position is
immediately hopeless.} 38. f3 {[%emt 0:00:03]} Bxe4 {[%emt 0:01:55]} 39. fxe4 {
[%emt 0:00:05]} Rxe4 {[%emt 0:00:03]} 40. Rexe4 {[%emt 0:00:00]} Rxe4 {[%emt 0:
00:00]} 41. Rf2 {[%emt 0:12:36]} Re3 {[%emt 0:05:59]} 42. Kh2 {[%emt 0:00:53]}
Qe4 {[%emt 0:02:21]} 43. Qc8+ {[%emt 0:12:41]} Kh7 {[%emt 0:01:25]} 44. Rf4 {
[%emt 0:00:09]} Re2+ {[%emt 0:02:29]} 45. Kh3 {[%emt 0:00:09]} Qg2+ {[%emt 0:
00:32]} 46. Kg4 {[%emt 0:00:04]} h5+ {[%emt 0:00:23]} 47. Kxh5 {[%emt 0:00:46]}
Qxg3 {[%emt 0:00:09] A lucky turn-around for Jakovenko after putting up great
resistance, that put him back into contention for one of the two qualification
spots.} 0-1